Cogmind - Beta 12 @@@ ROGUE MODE // 2023.03.02 @ 20:16:22 Player: Plexion Result: Self-destructed Performance ------------- Evolutions (3) 1500 Regions Visited (8) 1600 Robots Destroyed (93) 465 Value Destroyed (3504) 3504 Prototype IDs (26) 520 Alien Tech Used (0) 0 Bonus (1932) 1932 TOTAL SCORE: 9521 Bonus ------- High Alert Combat Kills 488 Follower Combat Kills 78 Entered Garrisons 200 Used RIF Installer 1000 Aligned with FarCom 300 Friendly Fire -134 Cogmind --------- Core Integrity 631/700 Matter 65/300 Energy 280/280 System Corruption 8% Temperature Warm (100) Movement Treading (245) Ox1 Location -7/Factory Parts ------- > --- POWER (1) -------- Heavy Ion Engine > --- PROPULSION (3) --- Armored Treads Improved Heavy Treads > --- UTILITY (7) ------ Cargo Storage Unit Improved Light Armor Plating Relay Coupler [NC] (34) > --- WEAPON (2) ------- Enhanced Autogun > --- INVENTORY (30) --- Improved Heavy Treads Improved Heavy Treads Advanced Heat Sink Superbattery (1500) High-capacity Matter Pod (0) Compact Matter Pod (150) Improved Light Armor Plating Improved Light Armor Plating Improved Light Armor Plating Relay Coupler [NC] (32) Relay Coupler [Grunt] (31) Relay Coupler [Grunt] (36) Relay Coupler [Grunt] (31) Relay Coupler [Sentry] (25) Relay Coupler [Specialist] (26) Relay Coupler [Hunter] (19) Relay Coupler [Heavy] (20) Relay Coupler [Behemoth] Heavy Assault Rifle Enhanced Autogun Heavy Linear Accelerator Heavy Linear Accelerator Heavy Rocket Launcher Plasma Cutter Chainsword Peak State ------------ > --- POWER ------------ Heavy Ion Engine > --- PROPULSION ------- Armored Treads Improved Heavy Treads > --- UTILITY ---------- Cargo Storage Unit Machine Analyzer Improved Light Armor Plating Hardlight Generator Hacking Suite Relay Coupler [NC] > --- WEAPON ----------- Heavy Rocket Launcher Chainsword > --- INVENTORY -------- Improved Heavy Treads Improved Heavy Treads Advanced Heat Sink Superbattery Compact Matter Pod Improved Light Armor Plating Improved Light Armor Plating Improved Light Armor Plating Improved Light Armor Plating Relay Coupler [NC] Relay Coupler [Grunt] Relay Coupler [Grunt] Relay Coupler [Grunt] Relay Coupler [Sentry] Relay Coupler [Specialist] Relay Coupler [Hunter] Relay Coupler [Heavy] Relay Coupler [Behemoth] Heavy Assault Rifle Enhanced Autogun Enhanced Autogun Enhanced Autogun Heavy Linear Accelerator Heavy Linear Accelerator Plasma Cutter [Rating: 57] Favorites ----------- Power Heavy Ion Engine Engine Heavy Ion Engine Power Core Micro Nuclear Core Propulsion Light Treads Treads Light Treads Utility Improved Light Armor Plating Device Hardlight Generator Storage Large Storage Unit Processor Machine Analyzer Hackware Hacking Suite Protection Improved Light Armor Plating Weapon Light Cannon Ballistic Gun Enhanced Autogun Ballistic Cannon Light Cannon Launcher Heavy Rocket Launcher Special Weapon Plasma Cutter Slashing Weapon Chainsword Build | -11 -10 -10 -10 -9 -8 -7 -7 -7 ------- Run | Jun Mat Min Exi Min Mat Fac Gar Fac Slots Evolved 6 | . . . . . 4 2 . . Power . | . . . . . . . . . Propulsion 1 | . . . . . 1 . . . Utility 5 | . . . . . 3 2 . . Weapon . | . . . . . . . . . Parts Attached 81 | 6 4 2 . 6 34 3 19 7 Power 6 | 1 . 1 . 2 2 . . . Engine 4 | 1 . 1 . 1 1 . . . Core 2 | . . . . 1 1 . . . Reactor . | . . . . . . . . . Propulsion 16 | 2 . 1 . . 12 . 1 . Treads 16 | 2 . 1 . . 12 . 1 . Leg . | . . . . . . . . . Wheel . | . . . . . . . . . Hover . | . . . . . . . . . Flight . | . . . . . . . . . Utility 18 | 1 2 . . 2 5 3 4 1 Device 6 | . 1 . . . 2 1 2 . Storage 3 | 1 1 . . . . . 1 . Processor 1 | . . . . . . 1 . . Hackware 2 | . . . . . . 1 1 . Protection 6 | . . . . 2 3 . . 1 Artifact . | . . . . . . . . . Weapon 41 | 2 2 . . 2 15 . 14 6 Energy Gun . | . . . . . . . . . Energy Cannon . | . . . . . . . . . Ballistic Gun 17 | 2 . . . . 6 . 5 4 Ballistic Cannon 7 | . 2 . . 2 3 . . . Launcher 6 | . . . . . 2 . 3 1 Special Weapon 1 | . . . . . . . 1 . Impact Weapon . | . . . . . . . . . Slashing Weapon 10 | . . . . . 4 . 5 1 Piercing Weapon . | . . . . . . . . . Special Melee Weapon . | . . . . . . . . . Unidentified Prototypes 3 | . . . . . 2 . 1 . Parts Lost 6 | . . 1 . . . . . 5 Power 1 | . . 1 . . . . . . Propulsion . | . . . . . . . . . Utility 4 | . . . . . . . . 4 Weapon 1 | . . . . . . . . 1 Highest Loss Streak 5 | . . 1 . . . . . 5 To Critical Strikes . | . . . . . . . . . Average Slot Usage (%) 92 | . 86 99 71 100 98 95 86 83 Engine 8 | . 14 13 14 14 6 7 7 7 Core 1 | . . . . . 2 . . . Treads 23 | . 28 28 28 28 27 23 15 15 Device 11 | . 1 14 14 7 16 15 9 6 Storage 9 | . 14 14 14 14 9 7 6 7 Processor 2 | . . . . . . 5 7 6 Hackware 2 | . . . . . . 4 7 14 Protection 11 | . . . . 6 17 15 14 6 Ballistic Gun 6 | . 11 . . . 6 15 11 8 Ballistic Cannon 9 | . 16 28 . 28 8 . . . Slashing Weapon 1 | . . . . . 2 . 1 3 Naked Turns . | . . . . . . . . . Heaviest Build 169 | 10 30 30 24 51 66 47 169 166 Greatest Support 107 | 40 40 40 40 40 76 76 107 95 Greatest Overweight (x) 2 | 2 . . . 1 1 . 1 1 Average Overweight (x) . | . . . . . . . . 1 Largest Inventory Capacity 30 | 8 15 15 15 15 15 15 30 30 Average Capacity 18 | 7 10 15 15 15 15 15 25 30 Most Carried 30 | 2 7 7 10 11 15 15 29 30 Average Carried 13 | 1 4 6 9 9 13 13 16 29 Final Capacity 30 | 8 15 15 15 15 15 15 30 30 Final Carried 29 | 2 6 7 10 11 15 14 29 29 Class Distribution -------------------- 74% | Mutant 23% | Hauler-Mutant Dominant Class ---------------- Mutant | -10/Materials Mutant | -10/Mines Mutant | -10/Exiles Mutant | -9/Mines Mutant | -8/Materials Mutant | -7/Factory Hauler-Mutant | -7/Garrison Hauler-Mutant | -7/Factory Resources | -11 -10 -10 -10 -9 -8 -7 -7 -7 ----------- Run | Jun Mat Min Exi Min Mat Fac Gar Fac Matter Collected 3206 | 192 135 236 16 96 1479 . 830 222 Remotely . | . . . . . . . . . Salvage Created 3853 | . 253 180 . 161 1500 . 1511 248 Parts 180 | . 16 6 . 6 80 . 59 13 Haulers Intercepted 5 | . 1 . . . 4 . . . Recyclers Shooed 3 | . 2 . . . 1 . . . Parts Field Recycled . | . . . . . . . . . Retrieved Matter . | . . . . . . . . . Parts Self-Destructed . | . . . . . . . . . Prevented . | . . . . . . . . . Kills | -11 -10 -10 -10 -9 -8 -7 -7 -7 ------- Run | Jun Mat Min Exi Min Mat Fac Gar Fac Combat Hostiles Destroyed 70 | . 6 4 . 3 30 . 22 5 Guns 30 | . 2 . . . 12 . 12 4 Cannons 23 | . 4 4 . 3 12 . . . AOE 17 | . . . . . 6 . 10 1 Classes Destroyed 16 | . 4 3 . . 7 . 2 . Worker 5 | . 1 1 . . 3 . . . Builder 3 | . . . . . 1 . . 2 Tunneler 3 | . . 2 . 1 . . . . Hauler 5 | . 1 . . . 4 . . . Recycler 2 | . . 1 . . 1 . . . Mechanic 2 | . . . . . 1 . . 1 Operator 1 | . . . . . 1 . . . Watcher 3 | . . . . . 3 . . . Swarmer 19 | . 2 . . . 3 . 14 . Grunt 36 | . 4 2 . 4 19 . 4 3 Brawler 2 | . . . . . 1 . . 1 Duelist 1 | . . . . . 1 . . . Sentry 8 | . . . . . 6 . 1 1 Hunter 1 | . . . . . . . 1 . Programmer 2 | . . . . . . . 2 . Assembled 2 | . . 2 . . . . . . Best Kill Streak 5 | . 3 2 . 3 5 . 4 5 Combat Bots Only 4 | . 3 2 . 2 4 . 4 2 Max Kills in Single Turn 3 | . 1 2 . 2 2 . 3 1 Gunslinging . | . . . . . . . . . Exploded 3 | . . . . . 1 . 3 1 Melee . | . . . . . . . . . Uniques/NPCs Destroyed . | . . . . . . . . . Combat | -11 -10 -10 -10 -9 -8 -7 -7 -7 -------- Run | Jun Mat Min Exi Min Mat Fac Gar Fac Damage Taken 2982 | . 202 116 . 181 987 . 612 884 Core 224 | . 35 24 . 27 69 . 16 53 Absorbed by Shields 596 | . . . . . 172 . 168 256 Core Remaining (%) 84 | 100 . . . 65 87 . . . Volleys Fired 312 | . 22 16 . 7 122 . 113 32 Largest 2 | . 2 2 . 2 2 . 2 2 Hottest 70 | . 70 70 . 70 70 . 50 50 Shots Fired 591 | . 44 33 . 15 228 . 214 57 Gun 363 | . 34 . . . 124 . 153 52 Cannon 154 | . 10 33 . 15 96 . . . Launcher 21 | . . . . . 8 . 8 5 Special 53 | . . . . . . . 53 . Kinetic 517 | . 44 33 . 15 220 . 153 52 Thermal 53 | . . . . . . . 53 . Explosive 21 | . . . . . 8 . 8 5 Electromagnetic . | . . . . . . . . . Robot Hit Streak 30 | . 11 5 . 9 23 . 30 6 Robot Miss Streak 6 | . 3 2 . 2 6 . 3 2 Penetration Max . | . . . . . . . . . Secondary Targets 5 | . . . . . 3 . . 2 Max Gunslinging Chain 1 | . . . . . 1 . . 1 Shots Hit Robots 430 | . 32 19 . 8 166 . 168 37 Core Hits 206 | . 13 11 . 5 69 . 89 19 Critical Kills . | . . . . . . . . . Critical Parts Destroyed 4 | . 1 . . . . . 3 . Critical Strikes 11 | . 1 1 . 1 3 . 5 . Destroy 4 | . 1 . . . . . 3 . Blast 4 | . . 1 . 1 2 . . . Sever 3 | . . . . . 1 . 2 . Melee Attacks 40 | . . . . . 18 . 19 3 Impact . | . . . . . . . . . Slashing 40 | . . . . . 18 . 19 3 Piercing . | . . . . . . . . . Sneak Attacks 6 | . . . . . 6 . . . Combat Hostiles . | . . . . . . . . . Follow-up Attacks . | . . . . . . . . . Damage Inflicted 10029 | . 355 364 . 178 4184 . 3551 1397 Guns 4391 | . 219 . . . 1553 . 2030 589 Cannons 1831 | . 130 364 . 178 1159 . . . Explosions 2679 | . . . . . 921 . 982 776 Melee 583 | . . . . . 551 . . 32 Ramming 6 | . 6 . . . . . . . Kinetic 6222 | . 349 364 . 178 2712 . 2030 589 Thermal 539 | . . . . . . . 539 . Explosive 2679 | . . . . . 921 . 982 776 Electromagnetic . | . . . . . . . . . Impact . | . . . . . . . . . Slashing 583 | . . . . . 551 . . 32 Piercing . | . . . . . . . . . Highest Corruption 8 | . 4 4 4 4 . . . 8 Average Corruption 4 | . 3 4 4 4 . . . 6 Corruption Purged . | . . . . . . . . . Corruption Blocked . | . . . . . . . . . Effects 48 | . 6 20 8 13 . . . 1 Message Errors 14 | . 3 7 2 2 . . . . Matter Fused 8 | . 1 4 2 1 . . . . Heat Flow Errors 11 | . . 4 1 5 . . . 1 Energy Discharges 5 | . 2 2 . 1 . . . . Parts Fused 1 | . . . 1 . . . . . Data Loss (minor) 4 | . . 1 2 1 . . . . Data Loss (major) 3 | . . 1 . 2 . . . . Misfires 2 | . . 1 . 1 . . . . Overload Shots . | . . . . . . . . . Overflow Damage 338 | . . 7 . . 222 . 109 . Projectiles 41 | . . 7 . . 34 . . . Explosions 143 | . . . . . 34 . 109 . Melee 154 | . . . . . 154 . . . Knockbacks 24 | . 2 9 . 1 12 . . . Impact . | . . . . . . . . . Kinetic 23 | . 2 8 . 1 12 . . . Secondary 1 | . . 1 . . . . . . Self-Inflicted Damage 79 | . . . . . . . 52 27 Shots 3 | . . . . . . . 2 1 Rammed 1 | . 1 . . . . . . . Targets Rammed 1 | . 1 . . . . . . . Kicked . | . . . . . . . . . Crushed . | . . . . . . . . . Highest Temperature 403 | . 60 257 169 291 403 . 30 259 Average Temperature 62 | . 20 45 93 100 108 . 6 48 Received Heat Transfer 1190 | . 84 42 . 102 509 . 62 391 Effects 3 | . . . . 2 1 . . . Energy Bleed 1 | . . . . . 1 . . . Interference 2 | . . . . 2 . . . . Siege Activations . | . . . . . . . . . Robots Corrupted . | . . . . . . . . . Combat Hostiles . | . . . . . . . . . Parts Fried . | . . . . . . . . . Impact Corruptions . | . . . . . . . . . Robots Melted . | . . . . . . . . . Combat Hostiles . | . . . . . . . . . Parts Melted . | . . . . . . . . . Heat Transferred 1776 | . . . . . . . 1776 . Parts Sabotaged . | . . . . . . . . . Parts Stolen . | . . . . . . . . . Parts Stripped . | . . . . . . . . . Power Chain Reactions . | . . . . . . . . . Missiles Intercepted . | . . . . . . . . . Alert | -11 -10 -10 -10 -9 -8 -7 -7 -7 ------- Run | Jun Mat Min Exi Min Mat Fac Gar Fac Peak Influence 1230 | . 216 55 . 75 624 283 1230 712 Initial 645 | . . 6 . . . 283 198 645 Average 291 | . 99 21 . 30 237 283 546 637 Maximum Alert Level 4 | . 1 . . . 2 1 4 3 Low Security (%) 42 | 100 72 100 . 100 38 . 9 . Level 1 28 | . 27 . . . 42 100 33 . Level 2 19 | . . . . . 18 . 30 69 Level 3 6 | . . . . . . . 18 30 Level 4 2 | . . . . . . . 8 . Level 5 . | . . . . . . . . . High Security . | . . . . . . . . . Max Security . | . . . . . . . . . Squads Dispatched 10 | . 2 . . 1 5 . . 2 Investigation 4 | . 1 . . 1 1 . . 1 Extermination . | . . . . . . . . . Reinforcement 5 | . 1 . . . 4 . . . Assault 1 | . . . . . . . . 1 Garrison . | . . . . . . . . . Intercept . | . . . . . . . . . Searches Triggered . | . . . . . . . . . Construction Impeded . | . . . . . . . . . Haulers Reinforced . | . . . . . . . . . Active Scanning Responses . | . . . . . . . . . Cargo Convoy Interrupts . | . . . . . . . . . Stealth | -11 -10 -10 -10 -9 -8 -7 -7 -7 --------- Run | Jun Mat Min Exi Min Mat Fac Gar Fac Distress Signals 8 | . . . . . 8 . . . Communications Jammed . | . . . . . . . . . Distress Signals . | . . . . . . . . . Times Spotted 107 | . 12 7 . 5 52 . 22 9 Peak Tracking Total 7 | . 3 4 . 3 7 . 4 4 Tactical Retreats 4 | . 2 . . . 2 . . . Traps | -11 -10 -10 -10 -9 -8 -7 -7 -7 ------- Run | Jun Mat Min Exi Min Mat Fac Gar Fac Traps Triggered 9 | . 2 . . . . . 6 1 Indirectly . | . . . . . . . . . Trap Hack Attempts . | . . . . . . . . . Triggered . | . . . . . . . . . Disarmed . | . . . . . . . . . Reprogrammed . | . . . . . . . . . Reused . | . . . . . . . . . Traps Extracted . | . . . . . . . . . Installed . | . . . . . . . . . Triggered . | . . . . . . . . . Machines | -11 -10 -10 -10 -9 -8 -7 -7 -7 ---------- Run | Jun Mat Min Exi Min Mat Fac Gar Fac Machines Disabled 5 | . . . . . 2 . 3 . Max in Single Turn 2 | . . . . . 2 . 1 . Garrison Relay 3 | . . . . . . . 3 . Machines Repaired . | . . . . . . . . . Machines Sabotaged . | . . . . . . . . . Overloaded Fab Kills . | . . . . . . . . . Hacking | -11 -10 -10 -10 -9 -8 -7 -7 -7 --------- Run | Jun Mat Min Exi Min Mat Fac Gar Fac Machines Accessed 13 | . 1 . 2 1 6 2 1 . Terminals 9 | . 1 . . . 6 1 1 . Fabricators . | . . . . . . . . . Repair Stations . | . . . . . . . . . Recycling Units . | . . . . . . . . . Scanalyzers . | . . . . . . . . . Garrison Access 1 | . . . . . . 1 . . Total Hacks 26 | . 6 . 2 1 13 2 2 . Successful 11 | . 3 . 2 1 3 1 1 . Failed 15 | . 3 . . . 10 1 1 . Catastrophic 6 | . 1 . . . 3 1 1 . Database Lockouts . | . . . . . . . . . Manual 21 | . 6 . 1 . 12 . 2 . Terminals 22 | . 6 . . . 13 1 2 . Fabricators . | . . . . . . . . . Repair Stations . | . . . . . . . . . Recycling Units . | . . . . . . . . . Scanalyzers . | . . . . . . . . . Garrison Access 1 | . . . . . . 1 . . Terminal Hacks 9 | . 3 . 2 1 2 . 1 . Record 1 | . . . 1 . . . . . Robot Analysis 2 | . 2 . . . . . . . Open Door 1 | . . . . 1 . . . . Hauler Manifests 1 | . . . . . 1 . . . Zone Layout 2 | . 1 . . . 1 . . . Garrison Registry 1 | . . . . . . . 1 . EX-Prototype ID Bank 1 | . . . 1 . . . . . Fabricator Hacks . | . . . . . . . . . Repair Station Hacks . | . . . . . . . . . Recycling Unit Hacks . | . . . . . . . . . Scanalyzer . | . . . . . . . . . Garrison Access Hacks 1 | . . . . . . 1 . . Unlock Access 1 | . . . . . . 1 . . Unauthorized Hacks 1 | . . . . . 1 . . . Terminals 1 | . . . . . 1 . . . Botnet 1 | . . . . . 1 . . . Fabricators . | . . . . . . . . . Repair Stations . | . . . . . . . . . Recycling Units . | . . . . . . . . . Scanalyzers . | . . . . . . . . . Garrison Access . | . . . . . . . . . Data Cores Recovered . | . . . . . . . . . Used . | . . . . . . . . . Hacking Detections 8 | . 1 . . . 4 2 1 . Full Trace Events 3 | . 1 . . . 1 . 1 . Feedback Events . | . . . . . . . . . Feedback Blocked . | . . . . . . . . . Robot Schematics Acquired . | . . . . . . . . . Robots Built . | . . . . . . . . . Authchips . | . . . . . . . . . Time . | . . . . . . . . . Total Robot Build Rating . | . . . . . . . . . Part Schematics Acquired . | . . . . . . . . . Parts Built . | . . . . . . . . . Authchips . | . . . . . . . . . Time . | . . . . . . . . . Total Part Build Rating . | . . . . . . . . . Parts Repaired . | . . . . . . . . . Time . | . . . . . . . . . Parts Recycled . | . . . . . . . . . Recycled Matter . | . . . . . . . . . Retrieved Matter . | . . . . . . . . . Retrieved Components . | . . . . . . . . . Parts Scanalyzed . | . . . . . . . . . Part Schematics Acquired . | . . . . . . . . . Parts Damaged . | . . . . . . . . . Bothacking | -11 -10 -10 -10 -9 -8 -7 -7 -7 ------------ Run | Jun Mat Min Exi Min Mat Fac Gar Fac Used RIF Installer 2 | . . . . . . . 2 . Coupler Efficiency 1 | . . . . . . . 1 . Robots Hacked . | . . . . . . . . . Non-combat . | . . . . . . . . . Combat . | . . . . . . . . . Robot Hacks Applied . | . . . . . . . . . Relay Couplers Released 12 | . . . . . . . 12 . Machine Destruction 12 | . . . . . . . 12 . Attached 1 | . . . . . . . 1 . Fabnet Peak Effective % . | . . . . . . . . . Robots Rewired . | . . . . . . . . . Allies Hacked . | . . . . . . . . . Hacks Repelled . | . . . . . . . . . Allies | -11 -10 -10 -10 -9 -8 -7 -7 -7 -------- Run | Jun Mat Min Exi Min Mat Fac Gar Fac Total Allies 6 | . . 3 . 3 . . . . Largest Group 3 | . . 2 2 3 2 . . . Highest-Rated Group 62 | . . 62 62 40 32 . . . Highest-Rated Ally 31 | . . 31 31 16 16 . . . Total Orders . | . . . . . . . . . Ally Attacks 23 | . . 11 . . 12 . . . Total Damage 342 | . . 172 . . 170 . . . Kills 5 | . . 3 . . 2 . . . Allies Corrupted . | . . . . . . . . . Allies Melted . | . . . . . . . . . Intel | -11 -10 -10 -10 -9 -8 -7 -7 -7 ------- Run | Jun Mat Min Exi Min Mat Fac Gar Fac Robot Analysis Total 2 | . 2 . . . . . . . Derelict Logs Recovered 4 | . . 3 . 1 . . . . Drone Launches . | . . . . . . . . . Drone Recoveries . | . . . . . . . . . Exploration | -11 -10 -10 -10 -9 -8 -7 -7 -7 ------------- Run | Jun Mat Min Exi Min Mat Fac Gar Fac Turns Passed 8485 | 75 441 983 450 707 2983 231 2007 608 Spaces Moved 3518 | 46 220 466 281 360 1107 140 690 208 Core 11 | 11 . . . . . . . . Treads 3507 | 35 220 466 281 360 1107 140 690 208 Legs . | . . . . . . . . . Wheels . | . . . . . . . . . Hover . | . . . . . . . . . Flight . | . . . . . . . . . Fastest Speed 50 | 50 160 160 160 160 158 163 163 245 Average Speed 188 | 142 160 160 160 188 190 163 218 245 Slowest Speed 245 | 160 160 160 160 240 243 163 245 245 Overloaded Moves . | . . . . . . . . . Propulsion Burnouts . | . . . . . . . . . Robots Hopped . | . . . . . . . . . Cave-ins Triggered . | . . . . . . . . . Exploration Rate (%) 48 | 4 41 96 70 67 77 3 68 6 Regions Visited 8 Branch Regions 3 Pre-discovered Areas 1 | . . . 1 . . . . . Known Exits Taken 2 | . . . . . 1 1 . . Unknown Exits Taken 5 | 1 1 1 1 1 . . . . Scrap Searched 4 | . . 2 . 2 . . . . Spaces Dug 48 | . . . . . 8 . 29 11 Terrain Destroyed 208 | . . . . . 64 . 98 46 Melee 18 | . . . . . 8 . 8 2 Projectile . | . . . . . . . . . AOE 190 | . . . . . 56 . 90 44 Terrain Rammed . | . . . . . . . . . Walls Destroyed . | . . . . . . . . . Machines Disabled . | . . . . . . . . . Actions | -11 -10 -10 -10 -9 -8 -7 -7 -7 --------- Run | Jun Mat Min Exi Min Mat Fac Gar Fac Total 4801 | 53 271 671 283 377 1785 142 957 262 Wait 729 | . 19 187 . . 461 . 51 11 Move 3509 | 45 219 465 280 359 1106 139 688 208 Hop . | . . . . . . . . . Pick Up 59 | 2 2 1 1 2 16 . 34 1 Fast Attach 23 | 6 4 . . 2 8 . 3 . Attach 9 | . . 1 . 2 2 2 1 1 Detach 9 | . 3 . 2 2 . . 2 . Swap 49 | . . 1 . 2 24 1 15 6 Drop 48 | . 1 . . 1 28 . 18 . Fire 312 | . 22 16 . 7 122 . 113 32 Melee 40 | . . . . . 18 . 19 3 Ram . | . . . . . . . . . Kick . | . . . . . . . . . Crush 1 | . 1 . . . . . . . Escape Stasis 12 | . . . . . . . 12 . Rewire 1 | . . . . . . . 1 . Trap . | . . . . . . . . . Miscellaneous . | . . . . . . . . . Route ------- -11/Junkyard -10/Materials (discovered 2 exits: [Mat] / [*Min]) -10/Mines (discovered 3 exits: [*Mat x2] / *Exi) -10/Exiles (discovered 2 exits: *Min x2) -9/Mines (discovered 2 exits: *Mat x2) -8/Materials (discovered 3 exits: *Fac x3) -7/Factory -7/Garrison (discovered 3 exits: [*Fac x3]) -7/Factory History --------- Turn | Location | Event 7 | -11/Junkyard | Discovered new exit (range 16) 76 | -11/Junkyard | Entered Materials 100 | -10/Materials | Discovered new exit (range 14) 316 | -10/Materials | Build established: Mutant 381 | -10/Materials | Discovered new exit (range 16) 517 | -10/Materials | Entered Mines 552 | -10/Mines | Assembled infested the area 557 | -10/Mines | Assisted by a Guerilla fighting off Assembled 848 | -10/Mines | Learned location of 1 exit from Materials 984 | -10/Mines | Learned Materials terminal intel 993 | -10/Mines | Learned 2 Materials zone layouts 1075 | -10/Mines | Discovered new exit (range 5) 1104 | -10/Mines | Discovered new exit (range 5) 1284 | -10/Mines | Received a Mining Laser from a helpful Derelict 1492 | -10/Mines | Deemed a non-threat by the Exiles lab entrance 1494 | -10/Mines | Discovered new exit (range 5) 1500 | -10/Mines | Entered Exiles 1500 | -10/Exiles | Accompanied by 2 allies 1522 | -10/Exiles | Discovered new exit (range 15) 1530 | -10/Exiles | Led the pair of lost Derelicts to a safe place 1541 | -10/Exiles | Met 8R-AWN 1565 | -10/Exiles | Met EX-HEX 1652 | -10/Exiles | Met EX-DEC 1682 | -10/Exiles | Learned location of Zion (-6) 1717 | -10/Exiles | Met EX-BIN 1740 | -10/Exiles | Aligned with FarCom system 1741 | -10/Exiles | Given EX-Vault access code 1783 | -10/Exiles | Opened EX-Vault 1797 | -10/Exiles | Found Superbattery 1834 | -10/Exiles | Warned to stay clear of 0b10 Research branches 1933 | -10/Exiles | Discovered new exit (range 14) 1950 | -10/Exiles | Left Exiles lab with Superbattery 1950 | -10/Exiles | Entered Mines 2069 | -9/Mines | Received a Rocket Launcher from a helpful Derelict 2191 | -9/Mines | Learned 4 Materials zone layouts 2268 | -9/Mines | Discovered new exit (range 4) 2331 | -9/Mines | Met a Derelict shopkeep closing up shop 2333 | -9/Mines | Discovered new exit (range 10) 2552 | -9/Mines | Assisted by bots powering up and referring to "LRC-V3" 2657 | -9/Mines | Entered Materials 2657 | -8/Materials | Accompanied by 2 allies 2657 | -8/Materials | Evolved 4 slots: Propulsion x1, Utility x3 2658 | -8/Materials | Identified exit to Factory 2660 | -8/Materials | Loaded intel: 12 terminal locations 4167 | -8/Materials | Discovered exit to Factory (range 16) 5640 | -8/Materials | Entered Factory 5640 | -7/Factory | Evolved 2 slots: Utility x2 5861 | -7/Factory | Identified exit to Garrison 5871 | -7/Factory | Entered Garrison 5974 | -7/Garrison | Triggered checkpoint 6021 | -7/Garrison | Discovered new exit (range 9) 6057 | -7/Garrison | Discovered new exit (range 83) 6057 | -7/Garrison | Discovered new exit (range 37) 6057 | -7/Garrison | Discovered new exit (range 11) 6060 | -7/Garrison | Triggered checkpoint 6733 | -7/Garrison | Garrison Relay disabled 6835 | -7/Garrison | Build established: Hauler-Mutant 6863 | -7/Garrison | Triggered checkpoint 7371 | -7/Garrison | Installed Relay Interface Framework 7423 | -7/Garrison | Triggered checkpoint 7455 | -7/Garrison | Garrison Relay disabled 7529 | -7/Garrison | Triggered checkpoint 7666 | -7/Garrison | Garrison Relay disabled 7696 | -7/Garrison | Triggered checkpoint 7740 | -7/Garrison | Expanded RIF knowledge: Coupler Efficiency 7878 | -7/Garrison | Entered Factory 8278 | -7/Factory | First assault squad dispatched 8486 | -7/Factory | Self-destructed Last Messages --------------- 08465_ R-06 Scavenger collects Wheel. 08466_ U-05 Engineer lays Concrete. 08466_ B-48 Gladiator destroyed. 08466_ Switching to secondary target: G-50 Soldier. 08467_ U-05 Engineer lays Concrete. 08469_ R-06 Scavenger collects Lgt. Nuclear Core. 08469_ U-05 Engineer lays Concrete. 08472_ The unstable cave ceiling collapses. 08473_ U-05 Engineer lays Concrete. 08473_ M-28 Smith repairs Aluminum Leg. 08474_ System corrupted: Heat flow error (+272). 08474_ U-05 Engineer lays Concrete. 08475_ Acquired 24 matter. 08476_ U-05 Engineer lays Concrete. 08479_ Hardlight Generator destroyed. 08480_ U-05 Engineer lays Concrete. 08480_ Acquired 32 matter. 08481_ U-05 Engineer lays Concrete. 08482_ Enh. Autogun destroyed. 08483_ U-05 Engineer lays Concrete. Map ----- +----------------------------------------------------+ | ?????????????????????????????????????????????????? | | ??????????????????????????""""?????????????"""???? | | ??????????????????????????""R""????????????"""???? | | ??????????????????????????""?""????????????"""???? | | ?????????????????????????????????????????????????? | | ???????????????????????????"""?"""?"""?"""?"""???? | | ???????????????????????? """?"""?"""?"""?"""???? | | ???????????????????????# """?"""?"""?"""?"""???? | | ???????????????????????+ ??????????????????????? | | ???????????????????????# ^ """?"""?"""?"""?"""???? | | ???????????????????????# """?"""?"""?"""?"""???? | | ???????????????"""?"""?# """ """?"""?"""?"""???? | | ???????????????"""?"""?# ???????????????? | | ???????????????"""?"""?# ^""" """?????"""?"""???? | | ???????????????????????# """ """?????"""?"""???? | | ???????????????"""?"""?+ """ """?????"""?"""???? | | ???????????????""" """?# ??????????????????? | | ???????????????""" """?# ???????????????????? | | ?????????????????? ?# #???????????????????? | | ???????????????""" """?# #???????????????????? | | ???????????????""" """ # #???????????????????? | | ?????????????# """ """ # #???????????????????? | | ?????????????# #???????????????????? | | ???????? ???# #???????????????????? | | ######## ??######### #???????????????????? | | # ??????????# #g@* #???????????????????? | | # ?????#### #???????????????????? | | # ??????# #??????????????????? | | # #### mg ##??????????????????? | | # #???????????????????? | | # #????###### u #???????????????????? | | # #?????????# u #???????????????????? | | #?????????# % #### ###???????????????????? | | #??"T"??### % # #?????????????????????? | | #???????# ##?????????????????????" | | ######### ##???????????????????????Y | | #????????????????????????" | | ############### ?????????????????????????? | | ??????????????# #??????????????????????????? | | ????????????######/#######???????????????????????? | | #######?????# #???????????????????????? | | ????# #???????????????????????? | | """""""""??# #???????????????????????? | | # [[[ #???????????????????????? | | """"""""" # [[ #???????????????????????? | | # [[ #???????????????????????? | | """"""""" # #???????????????????????? | | # #???????????????????????? | | """"""""" # #???????????????????????? | | # #???????????????????????? | +----------------------------------------------------+ Best States ------------- Heat Dissipation 61 Energy Generation 15 Energy Capacity 280 Matter Stores 300 Matter Capacity 300 Sight Range 16 Terrain Scan Density 10 Additional Mass Support 12 Armor Coverage 450 Resistance: KI 30 Resistance: TH 15 Evasion (%) 40 Recoil Reduction 3 Offensive Hacking 10 Relay Coupler Types 1 Relay Coupler Value 34 Item Schematics ----------------- None Robot Schematics ------------------ None Fabricated ------------ Nothing Alien Tech Used ----------------- None Achievements -------------- None Challenges ------------ None Game ------ Seed HugeMobileArmor Manual? 0 Play Time 00:38:54 Cumulative 323.6 hours Start 2023.03.02 @ 19:37:42 End 2023.03.02 @ 20:16:22 Sessions 1 Manual Loads 0 Difficulty Rogue Special Mode None Game No. 427 Rogue 340 Adventurer 87 Explorer 0 Win Type - Total 12 Types 6/0/4/1/1/0/0/0/0 Lore% 85 Gallery% 86 Achievement% 73 Wizard Run 0 Options --------- ASCII 0 Keyboard 1 Movement Numpad Keybinds 0 Fullscreen 1 Font 18/SmallcapsGlow Map View 76x50 Tactical HUD 1 Map Filters NONE Filters NONE Steam 1 RUN: 1be8b663-1561-4247-b88f-df8c8df50625